Cogmind - Beta 15 @@@ ROGUE MODE // 2025.10.09 @ 18:52:25 Player: Zaros426 Result: Destroyed by G-47 Trooper with Particle Gun Performance ------------- Evolutions (0) 0 Regions Visited (1) 200 Robots Destroyed (2) 10 Value Destroyed (106) 106 Prototype IDs (0) 0 Alien Tech Used (0) 0 Bonus (0) 0 TOTAL SCORE: 316 Bonus ------- None Cogmind --------- Core Integrity 0/250 Matter 300/300 Energy 250/250 System Corruption 0% Temperature Cool (9) Movement Walking (190) Ox1 Location -10/Materials Parts ------- > --- POWER (1) -------- Ion Engine > --- PROPULSION (2) --- Aluminum Leg > --- UTILITY (2) ------ Small Storage Unit > --- WEAPON (2) ------- Medium Laser > --- INVENTORY (8) ---- Light Deuterium Engine Combat Airjet Peak State ------------ > --- POWER ------------ Light Deuterium Engine > --- PROPULSION ------- Combat Airjet > --- UTILITY ---------- Small Storage Unit > --- WEAPON ----------- Medium Laser Small Laser > --- INVENTORY -------- Ion Engine Medium Laser [Rating: 11] Favorites ----------- Power Ion Engine Engine Ion Engine Propulsion Light Treads Treads Light Treads Leg Aluminum Leg Hover Unit Combat Airjet Utility Small Storage Unit Storage Small Storage Unit Weapon Medium Laser Energy Gun Medium Laser Build | -11 -10 ------- Run | Yrd Mat Slots Evolved . | . . Power . | . . Propulsion . | . . Utility . | . . Weapon . | . . Parts Attached 11 | 11 . Power 2 | 2 . Engine 2 | 2 . Core . | . . Reactor . | . . Propulsion 5 | 5 . Treads 2 | 2 . Leg 2 | 2 . Wheel . | . . Hover 1 | 1 . Flight . | . . Utility 1 | 1 . Device . | . . Storage 1 | 1 . Processor . | . . Hackware . | . . Protection . | . . Artifact . | . . Weapon 3 | 3 . Energy Gun 3 | 3 . Energy Cannon . | . . Ballistic Gun . | . . Ballistic Cannon . | . . Launcher . | . . Special Weapon . | . . Impact Weapon . | . . Slashing Weapon . | . . Piercing Weapon . | . . Special Melee Weapon . | . . Unidentified Prototypes . | . . Parts Lost 5 | 5 . Power . | . . Propulsion 3 | 3 . Utility . | . . Weapon 2 | 2 . Highest Loss Streak 4 | 4 . To Critical Strikes . | . . Average Backups 1 | 1 2 Power . | . 1 Propulsion . | . 1 Utility . | . . Weapon . | . . Tool/Special . | . . Unused Backups . | . . Power . | . . Propulsion . | . . Utility . | . . Weapon . | . . Tool/Special . | . . Average Slot Usage (%) 57 | . 57 Engine 14 | . 14 Leg 14 | . 14 Storage 14 | . 14 Energy Gun 14 | . 14 Peak Build Rating 11 | 11 4 Average Rating 1 | 1 4 On Entrance 2 | . 4 Naked Turns . | . . Heaviest Build 13 | 13 12 Greatest Support 20 | 20 10 Greatest Overweight (x) 1 | 1 1 Average Overweight (x) . | . 1 Largest Inventory Capacity 8 | 8 8 Average Capacity 5 | 5 8 Most Carried 5 | 5 2 Average Carried 1 | 1 2 Final Capacity 8 | 8 8 Final Carried 2 | 2 2 Class Distribution -------------------- 100% | Mutant Dominant Class ---------------- Mutant | -10/Materials Resources | -11 -10 ----------- Run | Yrd Mat Matter Collected 305 | 305 . Remotely . | . . Salvage Created 162 | 162 . Parts 2 | 2 . Haulers Intercepted . | . . Recyclers Shooed . | . . Parts Field Recycled . | . . Retrieved Matter . | . . Parts Self-Destructed . | . . Prevented . | . . Kills | -11 -10 ------- Run | Yrd Mat Combat Hostiles Destroyed 6 | 6 . Guns 6 | 6 . Classes Destroyed 2 | 2 . Demolisher 2 | 2 . Assembled 4 | 4 . Best Kill Streak 3 | 3 . Combat Bots Only 3 | 3 . Max Kills in Single Turn 1 | 1 . Gunslinging . | . . Exploded . | . . Melee . | . . Uniques/NPCs Destroyed . | . . Combat | -11 -10 -------- Run | Yrd Mat Hostile Shots Fired 52 | 46 6 Missed 15 | 13 2 Hits 37 | 33 4 Melee 6 | 6 . Projectile 31 | 27 4 AOE 12 | 12 . Critical Strikes 1 | 1 . Damage Taken 924 | 874 50 Core 255 | 239 16 Absorbed by Shields . | . . Core Remaining (%) 4 | 4 . Volleys Fired 33 | 33 . Largest 2 | 2 . Hottest 100 | 100 . Shots Fired 48 | 48 . Gun 48 | 48 . Cannon . | . . Launcher . | . . Special . | . . Kinetic . | . . Thermal 48 | 48 . Explosive . | . . Electromagnetic . | . . Robot Hit Streak 5 | 5 . Robot Miss Streak 5 | 5 . Penetration Max . | . . Secondary Targets 1 | 1 . Max Gunslinging Chain 1 | 1 . Shots Hit Robots 28 | 28 . Core Hits 13 | 13 . Critical Kills . | . . Critical Parts Destroyed . | . . Critical Strikes 3 | 3 . Burn 3 | 3 . Melee Attacks . | . . Impact . | . . Slashing . | . . Piercing . | . . Sneak Attacks . | . . Combat Hostiles . | . . Follow-up Attacks . | . . Damage Inflicted 377 | 377 . Guns 377 | 377 . Cannons . | . . Explosions . | . . Melee . | . . Ramming . | . . Kinetic . | . . Thermal 377 | 377 . Explosive . | . . Electromagnetic . | . . Impact . | . . Slashing . | . . Piercing . | . . Highest Corruption . | . . Average Corruption . | . . Corruption Purged . | . . Corruption Blocked . | . . Overload Shots . | . . Overflow Damage . | . . Projectiles . | . . Explosions . | . . Melee . | . . Knockbacks . | . . Impact . | . . Kinetic . | . . Secondary . | . . Self-Inflicted Damage . | . . Shots . | . . Rammed . | . . Targets Rammed . | . . Kicked . | . . Crushed . | . . Highest Temperature 157 | 157 . Average Temperature 75 | 75 . Received Heat Transfer 127 | 100 27 Siege Activations . | . . Martial Activations . | . . Shielding Activations . | . . Robots Disrupted . | . . Combat Hostiles . | . . Robots Corrupted . | . . Combat Hostiles . | . . Parts Fried . | . . Impact Corruptions . | . . Robots Melted . | . . Combat Hostiles . | . . Parts Melted 2 | 2 . Heat Transferred 1261 | 1261 . Parts Sabotaged . | . . Parts Stolen . | . . Parts Stripped . | . . Power Chain Reactions . | . . Alert | -11 -10 ------- Run | Yrd Mat Maximum Alert Level . | . . Low Security (%) 100 | 100 100 Level 1 . | . . Level 2 . | . . Level 3 . | . . Level 4 . | . . Level 5 . | . . High Security . | . . Max Security . | . . Peak Influence 30 | 30 . Initial . | . . Average . | . . Influence Increases 50 | 50 . Destroy 0b10 Robot/C 40 | 40 . Destroy Leader 10 | 10 . Influence Decreases 50 | 50 . Time Decay 14 | 14 . Lost Part 36 | 36 . Squads Dispatched 1 | . 1 Investigation . | . . Extermination . | . . Reinforcement 1 | . 1 Assault . | . . Garrison . | . . Intercept . | . . Searches Triggered . | . . Construction Impeded . | . . Haulers Reinforced . | . . Active Scanning Responses . | . . Cargo Convoy Interrupts . | . . Stealth | -11 -10 --------- Run | Yrd Mat Distress Signals 1 | . 1 Communications Jammed . | . . Distress Signals . | . . Times Spotted 32 | 24 8 Peak Tracking Total 21 | 21 4 Tactical Retreats 1 | 1 . Traps | -11 -10 ------- Run | Yrd Mat Traps Triggered . | . . Indirectly . | . . Trap Hack Attempts . | . . Triggered . | . . Disarmed . | . . Reprogrammed . | . . Reused . | . . Traps Extracted . | . . Installed . | . . Triggered . | . . Machines | -11 -10 ---------- Run | Yrd Mat Machines Disabled . | . . Max in Single Turn . | . . Machines Repaired . | . . Machines Dismantled . | . . Machines Sabotaged . | . . Overloaded Fab Kills . | . . Hacking | -11 -10 --------- Run | Yrd Mat Machines Accessed . | . . Terminals . | . . Fabricators . | . . Repair Stations . | . . Recycling Units . | . . Scanalyzers . | . . Garrison Access . | . . Total Hacks . | . . Successful . | . . Failed . | . . Catastrophic . | . . Database Lockouts . | . . Manual . | . . Terminals . | . . Fabricators . | . . Repair Stations . | . . Recycling Units . | . . Scanalyzers . | . . Garrison Access . | . . Terminal Hacks . | . . Fabricator Hacks . | . . Repair Station Hacks . | . . Recycling Unit Hacks . | . . Scanalyzer . | . . Garrison Access Hacks . | . . Unauthorized Hacks . | . . Terminals . | . . Fabricators . | . . Repair Stations . | . . Recycling Units . | . . Scanalyzers . | . . Garrison Access . | . . Data Cores Recovered . | . . Used . | . . Hacking Detections . | . . Full Trace Events . | . . Feedback Events . | . . Feedback Blocked . | . . Robot Schematics Acquired . | . . Robots Built . | . . Authchips . | . . Time . | . . Total Robot Build Rating . | . . Part Schematics Acquired . | . . Parts Built . | . . Authchips . | . . Time . | . . Total Part Build Rating . | . . Parts Repaired . | . . Time . | . . Parts Recycled . | . . Recycled Matter . | . . Retrieved Matter . | . . Retrieved Components . | . . Parts Scanalyzed . | . . Part Schematics Acquired . | . . Parts Damaged . | . . Bothacking | -11 -10 ------------ Run | Yrd Mat Used RIF Installer . | . . Robots Hacked . | . . Non-combat . | . . Combat . | . . Robot Hacks Applied . | . . Relay Couplers Released . | . . Fabnet Peak Effective % . | . . Robots Rewired . | . . Allies Hacked . | . . Hacks Repelled . | . . Allies | -11 -10 -------- Run | Yrd Mat Total Allies . | . . Largest Group . | . . Highest-Rated Group . | . . Highest-Rated Ally . | . . Total Orders . | . . Ally Attacks . | . . Total Damage . | . . Kills . | . . Allies Corrupted . | . . Allies Melted . | . . Intel | -11 -10 ------- Run | Yrd Mat Active Infowar (turns) . | . . Robot Analysis Total . | . . Derelict Logs Recovered . | . . Drone Launches . | . . Drone Recoveries . | . . Exploration | -11 -10 ------------- Run | Yrd Mat Turns Passed 1927 | 1792 135 Spaces Moved 932 | 868 64 Core 752 | 752 . Treads . | . . Legs 169 | 105 64 Wheels . | . . Hover 11 | 11 . Flight . | . . Fastest Speed 50 | 50 190 Average Speed 74 | 65 190 Slowest Speed 190 | 190 190 Overloaded Moves . | . . Propulsion Burnouts . | . . Robots Hopped . | . . Potential Cave-ins . | . . Cave-ins Triggered . | . . Exploration Rate (%) 41 | 60 22 Regions Visited 1 Branch Regions . Pre-discovered Areas . | . . Known Exits Taken . | . . Unknown Exits Taken 1 | 1 . Scrap Searched . | . . Spaces Dug . | . . Terrain Destroyed . | . . Melee . | . . Projectile . | . . AOE . | . . Terrain Rammed . | . . Walls Destroyed . | . . Machines Disabled . | . . Actions | -11 -10 --------- Run | Yrd Mat Total 2120 | 2042 78 Wait 1136 | 1122 14 Move 931 | 867 64 Hop . | . . Pick Up 5 | 5 . Fast Attach 6 | 6 . Attach 6 | 6 . Detach 3 | 3 . Swap . | . . Drop . | . . Fire 33 | 33 . Melee . | . . Ram . | . . Kick . | . . Crush . | . . Escape Stasis . | . . Rewire . | . . Trap . | . . Miscellaneous . | . . Route ------- -11/Scrapyard -10/Materials (discovered 1 exit: [*Min]) History --------- Turn | Location | Event 4 | -11/Scrapyard | Discovered new exit (range 14) 1458 | -11/Scrapyard | Assembled infested the area 1541 | -11/Scrapyard | Core integrity fell below 50% 1588 | -11/Scrapyard | Lost 4 parts (2n2w) 1613 | -11/Scrapyard | Core integrity fell below 20% 1793 | -11/Scrapyard | Entered Materials 1794 | -10/Materials | Build established: Mutant 1912 | -10/Materials | Discovered new exit (range 15) 1928 | -10/Materials | Destroyed by G-47 Trooper with Particle Gun Last Messages --------------- 01627_ as-32692 suffers critical hit (Burn). 01628_ K-01 Serf collects debris. 01629_ as-32692 destroyed. 01632_ K-01 Serf collects debris. 01634_ Acquired 10 matter. 01637_ K-01 Serf collects debris. 01665_ The unstable cave ceiling collapses. 01665_ K-01 Serf collects debris. 01683_ The unstable cave ceiling collapses. 01710_ K-01 Serf collects debris. LOCATION=UNKNOWN GOAL=ESCAPE 01793_ ALERT: A rogue bot has emerged from the scrapyard. Terminate on contact. 01829_ O-16 Technician: "IFF HANDSHAKE FAILED. SECURING TERMINAL." 01835_ ALERT: Hostiles spotted, dispatching reinforcements to Terminal M002. 01838_ K-01 Serf collects debris. 01864_ Processing Tank comes online. 01912_ EXIT=FOUND 01912_ W-16 Scout sends out distress signal. 01920_ K-01 Serf collects debris. Map ----- +----------------------------------------------------+ | ?????????????????????????????????????????????????? | | ?????????????????????????????????????????????????? | | ?????????????????????????????????????????????????? | | ?????????????????????????????????????????????????? | | ????????????????????????????????????????######???? | | ????????????????????????????????????????# T #???? | | ????????????????????????????????????????# ##### | | ????????????????????????????????????????# # # | | ????????????????????????????????????????# # # | | ?????????????????????????? ???????????# # # | | ?????????????????????????# ???????????# # # | | ?????????????????????????# #??????????# + # | | ?????????????????????????+ #??????????# # # | | ?????????????????????????# #??????????# # # | | ?????????????????????????# #??????????###### # | | ?????????????????????????# #???????????# # # | | ?????????????????????????# u#???????????# T # | | ??????????????? ########## #???????????# # | | ???????????????? #???????????# # | | ????????????????? ############# + | | ??????????????????? # ! ##### | | ?????????????#######?# u # #???? | | ??????????? # # w ##+###??? | | ?????????? u #### | | ?????????? < g # | | ?????????? a @ g g # | | ?????????????#" "### # ### ### # | | ???????????????????????# ###+#####+#?# # "" | | ???????????????????????#! !# #?# # "" | | ???????????????????????##!!!!## """ #?# + "" | | ????????????????????????####### "R" #?# # | | ??????????????????????????????# " " """ #?### # | | ??????????????????????????????# """ #???# # ! | | ??????????????????????????????# """ #???# # ! | | ??????????????????????????????# #???# # ! | | ??????????????????????????????# [ #???# #### | | ??????????????????????????????####?######???# ??? | | ????????????????????????????????????????????###??? | | ?????????????????????????????????????????????????? | | ?????????????????????????????????????????????????? | | ?????????????????????????????????????????????????? | | ?????????????????????????????????????????????????? | | ?????????????????????????????????????????????????? | | ?????????????????????????????????????????????????? | | ?????????????????????????????????????????????????? | | ?????????????????????????????????????????????????? | | ?????????????????????????????????????????????????? | | ?????????????????????????????????????????????????? | | ?????????????????????????????????????????????????? | | ?????????????????????????????????????????????????? | +----------------------------------------------------+ Best States ------------- Heat Dissipation 25 Energy Generation 14 Energy Capacity 250 Matter Stores 300 Matter Capacity 300 Sight Range 16 Terrain Scan Density 10 Evasion (%) 50 Recoil Reduction 2 Item Schematics ----------------- None Robot Schematics ------------------ None Fabricated ------------ Nothing Repaired ---------- Nothing Alien Tech Used ----------------- None Achievements -------------- Curiosity Killed The Cat Challenges ------------ None Game ------ Seed AlphaRefineryBay Manual? 0 Play Time 00:06:40 Cumulative 327.7 hours Start 2025.10.09 @ 18:46:10 End 2025.10.09 @ 18:52:25 Sessions 1 Manual Loads 0 Difficulty Rogue Special Mode None Game No. 170 Rogue 170 Adventurer 0 Explorer 0 Win Type - Total 1 Types 0/0/0/0/1/0/0/0/0/0 Lore% 81 Gallery% 78 Achievement% 66 Wizard Run 0 Options --------- Layout 0 ASCII 0 Keyboard 0 Movement Mouse Keybinds 0 Fullscreen 1 Font 24/Smallcaps Map View 183x50 Zoom Use 0% Tactical HUD 1 Map Filters NONE Filters NONE Steam 0 RUN: 57bb0643-ad35-452d-97d2-e42d56f7dc3a